bitfinex-derivatives/quotes_ETHF0:USTF0_20250427
["timestamp","ask_amount","ask_price","bid_price","bid_amount"]
[1745717593931,1.09961,1818.1,1817.7,1.09978]
[1745717594133,3.2078,1818.3,1817.8,3.2638]
[1745717594524,3.2078,1818.3,1817.9,1.09967]
[1745717594728,1.09986,1817.7,1817.4,3.1375]
[1745717595027,1.09988,1817.6,1817.5,3.2638]
[1745717595631,4.30768,1817.6,1817.5,3.2638]
[1745717595822,3.2078,1817.6,1816.6,14.314]
[1745717596023,1.10016,1817.2,1817.0,3.2638]
[1745717596419,3.2078,1817.4,1817.0,3.2638]
[1745717596634,3.2078,1817.4,1816.6,11.5035]
[1745717596825,1.10031,1816.9,1816.8,3.2638]
[1745717597129,3.2078,1817.0,1816.9,1.10031]
[1745717597337,4.30785,1817.4,1816.8,8.2638]
[1745717597638,4.3081,1817.0,1816.8,3.2638]
[1745717597829,3.2078,1817.0,1816.8,3.2638]
[1745717598132,1.10064,1816.4,1816.1,9.45678]
[1745717598334,1.10067,1816.3,1816.2,3.3498]
[1745717598627,3.2078,1816.4,1816.2,3.3498]
[1745717598834,3.2078,1816.4,1816.2,8.3498]
[1745717599033,6.4106,1816.9,1816.2,8.3498]
[1745717599338,1.10013,1817.3,1816.9,1.10029]
[1745717599534,3.2078,1817.4,1817.3,1.10007]
[1745717599835,3.2078,1817.4,1817.0,3.3498]
[1745717600023,3.2078,1817.2,1816.4,3.4194]
[1745717600223,1.10034,1816.9,1816.6,1.10048]
[1745717600433,3.70275354,1817.1,1816.7,3.1498]
[1745717600629,4.80294354,1817.1,1816.7,4.25019]
[1745717600934,0.48705354,1817.0,1816.7,4.25022]
[1745717601130,0.48705354,1817.0,1816.9,1.10031]
[1745717601325,0.48705354,1817.0,1816.7,6.3576]
[1745717601326,3.2078,1817.2,1817.0,1.10022]
[1745717601523,4.30793,1817.2,1816.5,3.1252]
[1745717601723,3.2078,1817.2,1816.8,3.1498]
[1745717601926,3.2078,1817.2,1817.1,1.10019]
[1745717602334,3.2078,1817.2,1816.8,3.1498]
[1745717602530,3.70265433,1817.1,1816.8,3.1498]
[1745717602833,0.48695433,1817.1,1817.0,1.10025]
[1745717603029,6.4845,1818.0,1817.6,1.09986]
[1745717603235,6.4845,1818.0,1817.9,1.0997]
[1745717603536,3.2078,1818.0,1817.5,3.2078]
[1745717603842,3.2078,1817.6,1816.5,1.10052]
[1745717604035,3.2078,1816.9,1816.5,3.1566]
[1745717604235,3.2078,1816.7,1816.4,3.4194]
[1745717604451,4.37722,1816.6,1816.4,3.4194]
[1745717604636,1.10055,1816.5,1816.4,3.4194]
[1745717604937,3.2767,1816.6,1816.4,3.4194]
[1745717605130,3.2078,1816.5,1816.1,3.1566]
[1745717605329,4.30837,1816.5,1816.2,1.10069]
[1745717605530,3.2078,1816.5,1816.2,1.10069]
[1745717605738,4.30841,1816.5,1816.2,1.10071]
[1745717605938,3.2078,1816.5,1816.2,1.10069]
[1745717606131,3.2078,1816.3,1816.0,1.10081]
[1745717606332,3.2078,1816.1,1815.3,11.3008]
[1745717606639,3.2078,1815.8,1815.7,1.10104]
[1745717606833,3.2078,1815.8,1815.6,3.3821]
[1745717607035,3.2078,1815.8,1815.1,1.1014]
[1745717607237,3.2683,1815.7,1815.0,3.2078]
[1745717607434,3.2078,1815.8,1814.9,3.3821]
[1745717607647,4.3088,1815.8,1815.4,1.1012]
[1745717607837,3.2078,1815.6,1814.9,3.3821]
[1745717608139,3.2078,1815.2,1814.9,4.48361]
[1745717608439,3.2078,1815.2,1815.0,1.10144]
[1745717608640,1.10132,1815.3,1814.9,4.48359]
[1745717608949,1.10132,1815.3,1814.5,15.5979]
[1745717608950,3.2078,1815.2,1814.5,15.5979]
[1745717609238,1.10176,1814.6,1813.9,3.2078]
[1745717609437,6.5812,1814.5,1813.7,3.2078]
[1745717609639,3.2078,1814.0,1813.1,0.09593701]
[1745717609843,3.2078,1814.0,1813.5,3.2078]
[1745717610045,3.2078,1814.3,1813.8,3.2078]
[1745717610339,3.2078,1814.1,1813.1,6.3307]
[1745717610537,3.3734,1814.0,1813.4,3.2078]
[1745717610735,3.3734,1814.0,1813.2,3.2078]
[1745717610936,3.2078,1813.6,1813.2,3.2078]
[1745717611130,6.5812,1814.0,1813.7,1.10223]
[1745717611331,3.3734,1814.0,1813.8,1.10214]
[1745717611535,3.3734,1814.0,1813.1,3.43]
[1745717611739,3.2078,1813.7,1813.1,3.43]
[1745717611938,3.3734,1813.6,1813.1,3.43]
[1745717612139,3.2078,1814.1,1813.8,1.10216]
[1745717612344,6.15881,1814.0,1812.5,0.01368021]
[1745717612542,3.2078,1813.4,1812.6,3.3332]
[1745717612741,4.31007,1813.7,1812.6,6.541]
[1745717613033,3.4036,1813.6,1812.6,6.0905]
[1745717613237,3.4036,1813.6,1813.3,1.10246]
[1745717613442,3.2078,1813.4,1812.7,8.357]
[1745717613645,3.4036,1813.6,1812.9,3.2078]
[1745717613842,3.4036,1813.6,1813.0,3.3332]
[1745717614094,6.6114,1813.6,1813.5,1.10237]
[1745717614354,6.6114,1813.6,1813.1,1.10259]
[1745717614643,6.6114,1813.6,1813.0,3.3332]
[1745717614644,6.6114,1813.6,1812.7,8.357]
[1745717614945,3.2078,1813.4,1813.0,1.10264]
[1745717615151,6.78804,1814.2,1812.8,5.9648]
[1745717615152,3.2078,1813.7,1812.8,5.9648]
[1745717615334,3.2078,1813.9,1813.6,1.10228]
[1745717615538,3.3134,1813.8,1813.1,2.75654]
[1745717615738,3.2078,1813.5,1813.1,2.75654]
[1745717615940,3.3134,1813.8,1813.6,1.10229]
[1745717616135,3.3134,1813.8,1813.5,1.10233]
[1745717616346,3.2078,1813.7,1813.2,1.10253]
[1745717616544,3.2078,1813.3,1813.0,3.1372]
[1745717616745,3.3134,1813.2,1812.5,0.01368021]
[1745717616945,3.2078,1813.4,1813.3,1.10249]
[1745717617147,3.2078,1813.8,1813.7,1.10225]
[1745717617346,3.2078,1814.0,1813.9,1.10213]
[1745717617543,3.2078,1814.5,1813.8,2.75547]
[1745717617744,6.5212,1814.4,1814.3,1.10189]
[1745717617947,6.5212,1814.4,1813.6,2.75575]
[1745717617948,6.5212,1814.4,1814.0,3.1372]
[1745717618148,6.5212,1814.4,1814.3,1.10189]
[1745717618456,3.2078,1814.5,1814.4,1.10182]
[1745717618749,10.17330745,1814.5,1814.4,1.10182]
[1745717618946,10.17330745,1814.5,1813.0,3.2078]
[1745717618947,26.28776745,1814.5,1813.0,3.2078]
[1745717619148,3.2078,1814.1,1813.1,5.98492]
[1745717619379,3.2078,1813.9,1813.1,5.51591579]
[1745717619652,3.2078,1813.9,1813.1,2.30811579]
[1745717619946,3.4551,1813.8,1813.6,1.10229]
[1745717620147,3.2078,1813.7,1813.1,5.51591579]
[1745717620355,3.2078,1813.7,1813.5,1.10233]
[1745717620651,3.2078,1813.7,1813.5,1.10234]
[1745717620850,3.4551,1813.6,1813.5,1.10234]
[1745717621154,3.2078,1813.7,1813.6,1.10231]
[1745717622047,3.2078,1813.9,1813.8,1.10219]
[1745717622254,3.2078,1814.6,1813.7,3.2078]
[1745717622447,3.2078,1814.6,1814.5,1.10176]
[1745717622652,3.1513,1814.7,1814.6,1.1017]
[1745717622852,3.2078,1815.0,1814.9,1.10152]
[1745717622853,3.1513,1815.0,1814.9,1.10152]
[1745717623146,8.40700288,1815.2,1815.1,1.1014]
[1745717623147,5.19920288,1815.2,1815.1,1.1014]
[1745717623553,5.19920288,1815.2,1814.7,3.2078]
[1745717623853,5.19920288,1815.2,1814.7,6.3818]
[1745717624156,5.19920288,1815.2,1815.1,1.1014]
[1745717624358,3.1513,1815.4,1815.1,3.2078]
[1745717624551,3.2078,1815.9,1815.3,3.2078]
[1745717624754,1.10113,1815.6,1815.3,8.361]
[1745717625056,3.2078,1815.7,1815.3,8.361]
[1745717625255,3.2078,1815.4,1815.3,8.361]
[1745717626055,9.30902,1815.4,1815.0,1.10144]
[1745717626256,3.2097,1815.3,1814.8,11.5688]
[1745717626453,3.2097,1815.3,1814.9,1.10148]
[1745717626652,4.30917,1815.2,1814.8,12.67037]
[1745717626846,4.31111,1815.1,1814.8,11.5688]
[1745717627051,4.31114,1815.1,1814.8,11.5688]
[1745717627354,4.3111,1815.1,1814.8,3.2078]
[1745717627554,4.3093,1815.0,1814.6,1.10168]
[1745717627749,3.163,1814.9,1814.6,1.10168]
[1745717627981,3.163,1814.9,1814.6,1.1017]
[1745717628257,3.163,1814.9,1814.7,1.10161]
[1745717628459,3.163,1814.9,1814.5,6.6462]
[1745717628756,3.163,1814.9,1814.8,1.10158]
[1745717629157,3.2078,1815.0,1814.9,1.10152]
[1745717629357,3.163,1815.2,1815.1,1.1014]
[1745717629544,3.163,1815.2,1814.9,3.2078]
[1745717629749,3.163,1815.2,1815.0,3.4384]
[1745717630255,3.163,1815.2,1815.0,4.53983]
[1745717630555,3.163,1815.2,1815.0,3.4384]
[1745717630859,3.2078,1815.4,1815.0,6.6462]
[1745717631055,3.2078,1815.2,1815.0,4.53982]
[1745717631356,3.2078,1815.2,1814.9,0.01028325]
[1745717631658,4.30926,1815.0,1814.9,0.01028325]
[1745717632056,9.30926,1815.0,1814.9,0.01028325]
[1745717632302,1.10169,1814.7,1814.5,3.2078]
[1745717632554,1.10169,1814.7,1814.1,8.097]
[1745717632555,3.2078,1814.7,1814.1,8.097]
[1745717632759,3.2078,1814.5,1814.3,1.10186]
[1745717632960,4.4726,1814.4,1814.3,1.10186]
[1745717633259,3.2078,1814.7,1814.2,7.828]
[1745717633451,4.604,1814.6,1814.4,1.1018]
[1745717633652,4.604,1814.6,1814.1,8.097]
[1745717633854,4.30957,1814.5,1814.2,1.10195]
[1745717634052,4.604,1814.4,1814.2,1.1019]
[1745717634260,3.2078,1814.9,1814.2,5.96267]
[1745717634458,8.91335,1814.9,1814.6,1.10168]
[1745717634658,4.30945,1814.7,1814.4,1.10177]
[1745717634857,4.30945,1814.7,1814.1,8.097]
[1745717634858,4.604,1814.6,1814.2,4.3692]
[1745717635160,5.70572,1814.6,1814.3,1.10185]
[1745717635363,3.2078,1814.5,1814.2,4.3692]
[1745717635554,7.8118,1814.5,1814.3,1.10184]
[1745717635864,7.8118,1814.5,1814.3,1.10187]
[1745717636157,7.8118,1814.5,1814.2,4.3692]
[1745717636357,7.8118,1814.5,1814.4,1.10182]
[1745717636961,0.48521304,1814.5,1814.4,6.10182]
[1745717637161,4.6527,1815.1,1815.0,1.10146]
[1745717637361,3.2078,1815.2,1815.1,1.1014]
[1745717637761,3.2078,1815.4,1815.3,1.10128]
[1745717638060,4.6527,1815.5,1815.0,2.75354]
[1745717638260,4.6527,1815.5,1815.4,1.10122]
[1745717638460,4.6527,1815.5,1815.3,1.10124]
[1745717638710,4.6527,1815.5,1815.1,4.4858]
[1745717638964,4.6527,1815.5,1815.4,1.10122]
[1745717639167,4.6527,1815.5,1815.1,4.4858]
[1745717639468,3.2078,1815.3,1815.1,1.10136]
[1745717639659,3.2078,1815.3,1814.6,64.59115]
[1745717639660,5.56507,1815.2,1814.9,1.1015]
[1745717639854,3.2078,1815.0,1814.9,1.10151]
[1745717640859,4.4637,1815.2,1815.1,1.1014]
[1745717641065,3.2078,1815.5,1815.0,4.5024]
[1745717641268,3.2078,1815.5,1815.3,1.10125]
[1745717641460,4.4637,1815.4,1815.3,1.10125]
[1745717641662,4.4637,1815.4,1814.9,2.75374]
[1745717641663,1.10175,1814.6,1814.0,3.2078]
[1745717641899,4.4637,1814.5,1814.1,8.8449]
[1745717642061,4.4637,1814.5,1813.7,2.75561]
[1745717642062,4.4637,1814.5,1813.7,3.2078]
[1745717642266,1.10217,1813.9,1813.2,4.2253]
[1745717642464,3.2078,1814.1,1812.8,15.7262]
[1745717642465,3.2078,1813.3,1812.8,15.7262]
[1745717642672,3.2078,1813.3,1813.0,4.326]
[1745717642865,4.4345,1813.2,1812.8,3.2078]
[1745717643065,4.4345,1813.2,1812.9,4.326]
[1745717643265,4.4345,1813.2,1812.9,5.42872]
[1745717643466,4.4345,1813.2,1812.9,4.326]
[1745717643669,5.53709,1813.2,1812.9,4.326]
[1745717643964,3.2078,1813.0,1812.8,1.10277]
[1745717644171,3.2078,1813.0,1812.5,4.23898021]
[1745717644172,3.2078,1813.0,1812.6,4.326]
[1745717644364,4.4345,1813.2,1813.1,1.10261]
[1745717644566,3.2078,1813.2,1813.1,1.10261]
[1745717644760,3.2078,1813.7,1813.6,1.10231]
[1745717645113,3.2078,1814.1,1814.0,1.10202]
[1745717645261,1.10235,1813.6,1813.1,1.10258]
[1745717645467,10.19920288,1814.2,1812.9,4.6885]
[1745717645468,3.2078,1813.3,1812.9,4.6885]
[1745717645671,3.2078,1813.0,1812.9,4.6885]
[1745717645968,3.2078,1813.1,1813.0,1.10263]
[1745717646191,3.2078,1813.4,1812.9,4.6885]
[1745717646466,3.2078,1813.1,1812.6,3.2078]
[1745717646664,3.2078,1813.1,1812.5,0.01368021]
[1745717646665,4.3568,1813.0,1812.5,0.01368021]
[1745717646870,4.3568,1813.0,1812.8,1.10277]
[1745717647069,4.3568,1813.0,1812.9,1.10274]
[1745717647466,4.3568,1813.0,1812.8,1.10278]
[1745717647770,3.2078,1813.2,1812.5,0.01368021]
[1745717648074,3.2078,1813.2,1812.9,1.10271]
[1745717648270,4.3568,1813.1,1812.5,0.01368021]
[1745717648460,3.2078,1813.0,1812.5,0.01368021]
[1745717648665,3.2078,1812.8,1812.6,1.10289]
[1745717648866,4.2342,1812.7,1812.6,1.10289]
[1745717649062,3.2078,1813.0,1812.5,0.01368021]
[1745717649268,4.31052,1813.0,1812.6,1.1029]
[1745717649463,3.2078,1812.8,1812.5,0.01368021]
[1745717649668,3.2078,1812.8,1811.4,0.09603762]
[1745717649669,4.68465845,1812.7,1811.4,3.725923]
[1745717649874,3.2078,1812.1,1811.5,4.24490776]
[1745717650069,4.31105,1812.1,1811.5,4.24490776]
[1745717650378,4.31117,1811.9,1811.5,5.34845776]
[1745717650570,3.2078,1811.8,1811.5,5.34846776]
[1745717650871,3.2078,1811.6,1811.5,1.11549776]
[1745717651075,4.2342,1811.8,1811.5,0.01190776]
[1745717651284,4.2342,1811.8,1811.0,0.36069321]
[1745717651285,3.2078,1811.6,1811.0,0.36069321]
[1745717651574,9.8584,1812.7,1811.0,0.36069321]
[1745717651575,4.31163,1811.1,1811.0,0.36069321]
[1745717651771,3.2078,1811.1,1809.8,14.07464601]
[1745717651974,3.2078,1810.7,1810.2,4.3407]
[1745717652173,3.2078,1810.7,1810.2,7.5485]
[1745717652376,3.2078,1810.5,1810.2,4.3407]
[1745717652569,3.2078,1811.1,1810.8,1.10399]
[1745717652770,3.2078,1810.9,1810.8,1.10402]
[1745717653078,3.2078,1811.3,1810.8,3.2078]
[1745717653474,3.2078,1811.3,1810.1,61.881]
[1745717653475,3.2078,1810.6,1808.9,25.0729909]
[1745717653773,3.2078,1810.3,1810.0,3.2078]
[1745717653966,3.2078,1810.6,1809.9,3.2078]
[1745717654163,3.2078,1810.4,1809.8,11.87532253]
[1745717654363,3.2078,1810.0,1809.8,10.77073253]
[1745717654567,1.10456,1809.9,1809.8,10.77073253]
[1745717654780,3.2078,1810.0,1809.8,10.77073253]
[1745717654970,3.2078,1810.0,1809.8,15.77073253]
[1745717655165,7.8899,1810.5,1809.8,27.30853253]
[1745717655365,7.8899,1810.5,1809.9,7.4168]
[1745717655366,4.6821,1810.5,1809.9,7.4168]
[1745717655670,3.2078,1810.9,1809.9,4.6555]
[1745717656065,4.2943,1811.4,1810.1,3.2078]
[1745717656066,3.2078,1811.0,1810.1,3.2078]
[1745717656270,3.49855849,1811.4,1811.3,1.10371]
[1745717656668,2.37444849,1811.4,1811.3,6.10371]
[1745717656867,8.49e-06,1811.4,1811.3,6.10371]
[1745717657080,6.22670882,1811.7,1811.6,1.10353]
[1745717657272,4.90501882,1811.7,1811.6,1.10353]
[1745717657471,8.68142112,1811.8,1811.7,1.10347]
[1745717657681,11.88922112,1811.8,1811.2,4.6555]
[1745717657970,8.68142112,1811.8,1811.7,1.10347]
[1745717658170,4.53172112,1811.8,1811.7,12.90427]
[1745717658372,2.35743112,1811.8,1811.7,9.69647]
[1745717658573,5.56523112,1811.8,1811.7,1.10347]
[1745717658871,1.12e-06,1811.8,1811.7,1.10347]
[1745717659078,3.20780112,1811.8,1811.3,8.593]
[1745717659371,3.2078,1811.4,1810.8,13.2573]
[1745717659578,3.2078,1811.4,1810.9,4.3929]
[1745717659775,4.5788,1811.7,1810.9,4.3929]
[1745717659776,3.2078,1811.6,1811.3,1.10368]
[1745717659969,7.7866,1811.5,1811.4,1.10365]
[1745717660173,7.7866,1811.5,1811.3,1.10368]
[1745717660374,4.5788,1811.5,1811.4,1.10365]
[1745717660574,4.5788,1811.5,1811.0,2.75974]
[1745717660575,12.7866,1811.5,1810.2,2.76092]
[1745717660775,3.2078,1811.0,1810.3,7.5358]
[1745717660970,1.93976,1810.8,1810.4,2.76066]
[1745717661269,1.93976,1810.8,1810.3,4.775]
[1745717661270,1.74823,1811.5,1811.4,1.10365]
[1745717661476,0.70380928,1812.0,1811.9,1.10335]
[1745717661670,0.70380928,1812.0,1811.1,4.775]
[1745717661671,1.10339,1811.9,1811.1,4.6152]
[1745717661972,4.8225,1811.9,1811.1,4.6152]
[1745717662277,3.91160928,1812.0,1811.3,2.75928]
[1745717662480,3.2078,1812.1,1811.4,4.775]
[1745717662680,3.2078,1811.8,1810.8,3.2078]
[1745717662875,3.2078,1811.8,1810.7,11.35416]
[1745717662876,4.8225,1811.7,1811.3,1.10369]
[1745717663072,3.2078,1811.4,1811.1,1.10383]
[1745717663273,3.2078,1811.2,1810.7,9.69804]
[1745717663473,3.2078,1810.9,1810.8,1.10402]
[1745717663672,3.2078,1810.9,1810.7,9.69805]
[1745717663873,3.2078,1811.3,1810.7,8.594]
[1745717664072,3.2078,1811.3,1810.8,4.7177]
[1745717664273,4.8788,1811.5,1810.8,4.7177]
[1745717664571,3.2078,1811.4,1810.8,4.7177]
[1745717664877,2.7585,1811.9,1810.8,4.7177]
[1745717664878,3.2078,1810.9,1810.8,4.7177]
[1745717665077,3.2078,1811.1,1810.7,8.594]
[1745717665378,3.2078,1811.2,1811.0,1.10388]
[1745717665573,8.0866,1811.2,1810.7,7.3761733]
[1745717665770,8.0866,1811.2,1810.9,1.10394]
[1745717665972,8.0866,1811.2,1810.7,7.3761733]
[1745717666174,8.0866,1811.2,1811.0,1.10386]
[1745717666368,8.0866,1811.2,1810.7,8.595]
[1745717666567,3.2078,1811.5,1810.7,13.595]
[1745717666778,3.2078,1811.5,1811.4,1.10365]
[1745717666976,3.2078,1811.5,1810.8,2.76005]
[1745717666977,3.2078,1811.5,1810.7,8.595]
[1745717667273,3.2078,1811.5,1811.4,1.10365]
[1745717667481,4.813,1811.7,1811.6,1.10353]
[1745717667781,3.2078,1811.8,1811.7,1.10347]
[1745717668379,3.2078,1812.5,1811.7,6.10347]
[1745717668578,3.2078,1812.5,1811.8,2.75852]
[1745717668772,4.813,1812.6,1812.5,1.10298]
[1745717668974,4.813,1812.6,1812.2,8.597]
[1745717669178,4.813,1812.6,1812.5,1.10298]
[1745717669381,4.813,1812.6,1812.3,1.10306]
[1745717669577,4.813,1812.6,1812.2,8.597]
[1745717669785,3.2078,1812.3,1811.7,8.597]
[1745717670076,3.2078,1811.8,1811.0,13.0497]
[1745717670278,3.2078,1811.5,1811.0,13.0497]
[1745717670483,3.2078,1811.2,1810.6,3.2078]
[1745717670683,3.2078,1810.9,1810.5,8.595]
[1745717670881,3.2078,1810.9,1810.8,1.10402]
[1745717671184,3.2078,1811.3,1810.6,1.1041]
[1745717671378,4.559,1810.8,1810.7,1.10408]
[1745717671584,7.7668,1810.8,1810.5,8.595]
[1745717671980,3.2078,1811.3,1810.5,18.4309]
[1745717672177,3.2078,1811.0,1810.5,16.6387]
[1745717672377,3.2078,1811.0,1810.5,13.4309]
[1745717672577,4.559,1810.9,1810.7,1.10405]
[1745717672785,3.2078,1810.8,1810.5,9.69915]
[1745717672981,3.2078,1811.0,1810.9,1.10395]
[1745717673281,1.10361,1811.5,1810.6,2.76035]
[1745717673282,3.2078,1811.2,1811.1,1.10383]
[1745717673488,3.2078,1811.2,1810.5,8.595]
[1745717673782,4.4466,1811.1,1811.0,1.10389]
[1745717673986,4.4466,1811.1,1810.5,8.595]
[1745717674281,3.2078,1811.0,1810.6,4.56]
[1745717674486,4.4466,1810.9,1810.8,1.10402]
[1745717674783,4.4466,1810.9,1810.6,4.56]
[1745717674977,4.4466,1810.9,1810.8,1.10402]
[1745717675573,4.31142,1811.5,1811.1,1.10379]
[1745717675783,3.2078,1811.3,1811.2,1.10377]
[1745717675981,3.2078,1811.3,1810.8,4.5559]
[1745717676180,3.2078,1811.5,1810.8,4.5559]
[1745717676580,3.2078,1811.5,1811.4,1.10365]
[1745717677088,3.2078,1811.5,1811.0,4.5559]
[1745717677284,3.2078,1811.5,1811.4,1.10365]
[1745717677787,3.2078,1811.5,1811.1,8.598]
[1745717678083,3.2078,1811.8,1811.1,8.598]
[1745717678274,5.92759,1812.0,1811.1,8.598]
[1745717678275,3.2078,1811.4,1811.1,9.70181]
[1745717678475,3.2078,1811.4,1811.1,8.598]
[1745717678679,3.2078,1811.8,1811.1,8.598]
[1745717678880,3.2078,1811.2,1810.6,8.597]
[1745717679076,3.2078,1810.9,1810.6,8.597]
[1745717679276,3.2078,1810.9,1810.1,10.8023]
[1745717679277,3.2078,1810.9,1810.1,8.0412]
[1745717679481,3.2078,1810.9,1810.2,2.76096]
[1745717679678,3.2078,1810.4,1809.9,8.597]
[1745717679985,3.2078,1810.0,1809.4,8.597]
[1745717680283,11.35681,1811.0,1810.2,1.10437]
[1745717680284,3.2078,1810.4,1810.2,1.10437]
[1745717680490,4.31194,1810.6,1810.2,1.10436]
[1745717680694,3.2078,1810.6,1809.7,3.2078]
[1745717680883,0.42873754,1810.5,1809.8,2.6395]
[1745717681088,3.2078,1810.4,1810.1,1.10439]
[1745717681387,3.2078,1810.4,1809.8,2.6395]
[1745717681582,3.2078,1810.4,1810.2,1.10434]
[1745717681784,3.2078,1810.4,1810.1,1.10441]
[1745717681984,3.2078,1810.2,1810.1,1.10444]
[1745717682186,3.2078,1810.4,1810.2,1.10437]
[1745717682484,3.2078,1810.4,1810.1,1.10444]
[1745717682685,3.2078,1810.4,1809.6,2.76188]
[1745717682686,0.42839249,1810.3,1809.6,2.76188]
[1745717682892,0.42839249,1810.3,1810.2,1.10438]
[1745717683486,0.42839249,1810.3,1809.6,2.76188]
[1745717683696,3.2078,1810.2,1809.7,3.2078]
[1745717683984,2.76022,1810.7,1810.3,1.10429]
[1745717683985,3.2078,1810.5,1810.3,1.10429]
[1745717684187,1.10427,1810.4,1810.0,1.10446]
[1745717684389,3.2078,1810.5,1809.6,2.76188]
[1745717684591,3.2078,1810.5,1810.2,1.10435]
[1745717684792,3.2078,1810.5,1809.7,2.76172]
[1745717684993,4.31201,1810.5,1810.1,1.10441]
[1745717685287,1.10436,1810.3,1810.0,1.10448]
[1745717685589,3.2078,1810.1,1810.0,1.1045]
[1745717685794,3.2078,1810.3,1810.1,1.10444]
[1745717686092,4.31213,1810.3,1810.0,1.10447]
[1745717686294,3.2078,1810.1,1809.8,1.10456]
[1745717686487,3.2078,1810.1,1809.9,1.10456]
[1745717686689,0.70446595,1810.2,1810.1,1.10444]
[1745717687086,0.70446595,1810.2,1809.7,0.0058]
[1745717687286,3.91226595,1810.2,1810.1,1.10444]
[1745717687486,0.70446595,1810.2,1810.1,1.10444]
[1745717687989,8.91226595,1810.2,1809.4,8.597]
[1745717688188,8.91226595,1810.2,1807.7,5.958]
[1745717688189,3.2078,1809.6,1808.9,3.2078]
[1745717688393,3.2078,1809.4,1809.2,1.10497]
[1745717688589,3.2078,1809.4,1808.9,1.10515]
[1745717688590,1.10502,1809.2,1808.9,1.10515]
[1745717688895,3.2078,1809.0,1808.1,3.2078]
[1745717689082,3.2078,1808.5,1807.9,11.5578]
[1745717689287,3.2078,1808.5,1808.2,1.1056]
[1745717689487,3.2078,1808.5,1808.2,1.10554]
[1745717689692,3.2078,1808.3,1808.2,1.1056]
[1745717689994,12.23629,1809.2,1807.9,8.3558]
[1745717689995,4.31319,1808.6,1807.9,8.3558]
[1745717690190,4.31335,1808.3,1807.8,1.10582]
[1745717690393,3.2078,1807.9,1806.8,11.5636]
[1745717690688,3.2078,1807.3,1806.8,11.5578]
[1745717691493,3.2078,1807.3,1807.0,1.10631]
[1745717691793,9.5052,1808.2,1806.8,11.5578]
[1745717691794,3.2078,1807.6,1806.8,11.5578]
[1745717691988,3.2078,1807.9,1806.9,0.1156]
[1745717692189,3.2078,1807.9,1807.4,1.10606]
[1745717692383,3.2078,1807.5,1807.4,1.10609]
[1745717692889,3.2078,1807.5,1807.3,1.10612]
[1745717693095,3.2078,1807.5,1807.4,1.10609]
[1745717693393,18.06445568,1807.6,1807.5,1.10598]
[1745717693690,14.71718568,1807.6,1807.5,9.45898]
[1745717693889,28.18475131,1808.3,1807.5,9.45898]
[1745717693890,31.39255131,1808.3,1808.2,1.1056]
[1745717694088,24.74629131,1808.3,1808.2,1.1056]
[1745717694292,22.63614131,1808.3,1808.2,1.1056]
[1745717694789,22.63614131,1808.3,1808.2,6.1056]
[1745717694995,15.94758743,1808.4,1808.3,1.10554]
[1745717695295,13.45950743,1808.4,1808.3,1.10554]
[1745717695489,12.33953743,1808.4,1808.1,11.5638]
[1745717695697,11.12017743,1808.4,1808.3,9.46154]
[1745717695894,11.12017743,1808.4,1807.5,2.76508]
[1745717695895,14.85408422,1808.4,1807.6,2.7649]
[1745717696195,3.2078,1808.1,1807.7,8.356]
[1745717696393,4.9527,1808.0,1807.9,1.10579]
[1745717696795,3.2078,1808.3,1808.2,1.1056]
[1745717696991,1.95786,1808.3,1808.2,1.1056]
[1745717697295,9.85408743,1808.4,1808.3,1.10554]
[1745717697589,3.2078,1808.5,1808.4,1.10548]
[1745717697793,13.08439679,1808.8,1808.3,8.4457]
[1745717697990,13.08439679,1808.8,1808.2,8.358]
[1745717698191,13.08439679,1808.8,1808.7,1.1053]
[1745717698395,13.08439679,1808.8,1807.4,8.1034]
[1745717698593,3.2078,1807.9,1807.8,1.10585]
[1745717699193,3.2078,1808.1,1808.0,1.10566]
[1745717699685,3.2078,1808.1,1808.0,6.10566]
[1745717699888,4.8766,1808.3,1808.2,1.1056]
[1745717700191,3.2078,1808.6,1808.0,5.0]
[1745717700392,3.2078,1808.6,1808.5,1.10542]
[1745717700587,3.2078,1808.8,1808.7,1.1053]
[1745717700890,3.2078,1808.8,1808.6,1.10533]
[1745717701089,4.8314,1808.7,1807.8,3.2078]
[1745717701393,3.2078,1807.9,1807.5,8.359]
[1745717701589,4.8314,1807.8,1807.5,8.359]
[1745717701792,3.2078,1808.3,1807.6,2.76488]
[1745717701992,3.2078,1808.3,1808.0,1.10569]
[1745717702199,4.8314,1808.2,1808.1,1.10566]
[1745717702395,1.10576,1808.0,1807.5,8.359]
[1745717702694,8.0392,1807.9,1807.5,8.359]
[1745717702899,8.20779679,1808.2,1808.1,1.10566]
[1745717703097,3.2078,1808.2,1808.1,1.10566]
[1745717703300,3.2078,1808.9,1808.1,19.33096]
[1745717703499,3.2078,1809.0,1808.4,3.2078]
[1745717703695,8.20779679,1809.0,1808.7,1.10527]
[1745717703897,8.20779679,1809.0,1808.2,2.76397]
[1745717704198,3.2078,1809.0,1808.9,1.10517]
[1745717704498,0.02451,1809.4,1809.3,1.10493]
[1745717705002,0.02451,1809.4,1809.3,6.10493]
[1745717705196,10.17275026,1810.1,1809.3,6.10493]
[1745717705397,3.2078,1809.5,1808.9,66.8002]
[1745717705603,4.5683,1809.4,1809.3,1.10493]
[1745717705899,11.27722026,1810.1,1809.6,1.10473]
[1745717706097,4.4955,1809.8,1809.7,1.10469]